bitfinex/quotes_ETHUSD_20240820
["timestamp","ask_amount","ask_price","bid_price","bid_amount"]
[1724163971565,3.82825,2612.2,2611.9,0.127109]
[1724163971909,7.65596,2612.4,2611.9,0.127109]
[1724163972088,3.82813,2612.3,2611.9,0.127109]
[1724163972402,7.65652,2612.2,2611.9,0.127109]
[1724163972703,3.82822,2612.2,2611.9,0.127109]
[1724163972881,4.593838,2612.2,2611.9,0.127109]
[1724163973089,0.765618,2612.2,2611.9,0.127109]
[1724163973305,14.7282,2612.9,2611.9,0.127109]
[1724163973306,5.4637,2612.9,2611.9,0.127109]
[1724163973493,7.901,2613.7,2612.0,4.37839]
[1724163973494,3.82757,2612.7,2612.0,4.37839]
[1724163973662,2.4637,2613.0,2611.9,0.127109]
[1724163974001,3.82769,2612.6,2611.9,3.955599]
[1724163974299,3.82829,2612.2,2611.9,0.127109]
[1724163974607,3.82679,2613.2,2612.3,3.82795]
[1724163974787,3.82679,2613.2,2612.5,3.82762]
[1724163975001,3.8265,2613.4,2612.5,3.82762]
[1724163975002,3.82651,2613.4,2612.5,3.82762]
[1724163975215,6.11063,2614.0,2612.7,2.4729]
[1724163975521,3.8261,2613.7,2612.9,3.82704]
[1724163975723,3.82619,2613.6,2612.9,3.82704]
[1724163976073,3.82591,2613.8,2612.9,3.82703]
[1724163976277,3.82535,2614.2,2613.2,2.3889]
[1724163976569,3.82535,2614.2,2613.3,4.06537]
[1724163976770,3.82535,2614.2,2613.5,3.82618]
[1724163977178,3.82535,2614.2,2613.4,0.55]
[1724163977395,3.82535,2614.2,2613.5,3.82628]
[1724163977721,2.3307,2614.6,2613.5,3.82628]
[1724163977722,3.82472,2614.6,2613.8,6.13253]
[1724163977927,3.82439,2614.8,2614.0,3.82542]
[1724163978073,3.82439,2614.8,2613.8,2.3067]
[1724163978074,3.82453,2614.7,2613.8,2.3067]
[1724163978267,2.484,2615.4,2613.9,1.163262]
[1724163978268,0.49382711,2615.2,2613.9,1.163262]
[1724163978472,3.82502,2614.4,2613.9,0.613262]
[1724163978707,6.21497,2614.8,2613.6,0.437628]
[1724163978927,3.82506,2614.4,2613.7,4.37598]
[1724163979224,3.82403,2615.1,2613.8,2.3567]
[1724163979369,3.82403,2615.1,2613.9,4.66625]
[1724163979370,3.82467,2614.7,2613.9,4.66625]
[1724163979574,3.82468,2614.6,2613.9,0.84067]
[1724163979928,3.82468,2614.6,2613.9,4.66627]
[1724163980217,3.82366,2615.3,2614.0,3.82553]
[1724163980372,3.82446,2614.8,2614.0,3.82546]
[1724163980572,3.82386,2615.2,2613.9,0.84067]
[1724163980573,3.82468,2614.6,2613.9,4.66632]
[1724163980810,3.82482,2614.5,2613.9,0.29067]
[1724163980981,3.82541,2614.1,2613.4,2.3188]
[1724163981192,3.82564,2614.0,2613.4,2.3188]
[1724163981728,3.82526,2614.2,2613.4,6.14512]
[1724163981870,2.3336,2614.9,2613.7,3.82598]
[1724163981871,7.64954,2614.6,2613.7,3.82598]
[1724163982073,4.589704,2614.6,2613.9,3.82565]
[1724163982428,3.82485,2614.5,2613.7,3.82589]
[1724163982574,3.82485,2614.5,2613.8,3.82574]
[1724163983198,2.3336,2614.9,2613.8,3.82574]
[1724163983199,3.8244,2614.8,2613.9,3.82565]
[1724163983422,3.82458,2614.7,2614.0,2.8345]
[1724163983623,3.82515,2614.3,2613.7,3.8259]
[1724163983924,3.82519,2614.3,2613.6,2.2845]
[1724163984089,3.82551,2614.1,2613.6,2.2845]
[1724163984425,3.82564,2614.0,2613.6,2.2845]
[1724163984583,3.82551,2614.1,2613.6,2.2845]
[1724163984912,3.8252,2614.3,2613.6,2.2845]
[1724163985120,3.82498,2614.4,2613.7,3.8259]
[1724163985276,3.82486,2614.5,2613.7,3.8259]
[1724163985475,3.8249,2614.5,2613.7,3.8259]
[1724163985691,3.82542,2614.1,2613.6,2.2845]
[1724163986027,0.382458,2614.6,2613.3,0.23889]
[1724163986028,3.90171381,2614.2,2613.3,0.23889]
[1724163986227,3.82542,2614.1,2613.4,4.37642]
[1724163986407,3.90181381,2614.1,2613.3,0.23889]
[1724163986611,3.82521,2614.3,2613.3,0.23889]
[1724163986816,3.82521,2614.3,2613.5,3.82618]
[1724163987106,3.82534,2614.2,2613.6,0.55]
[1724163987480,0.382458,2614.6,2613.6,0.55]
[1724163987481,3.82556,2614.0,2613.6,0.55]
[1724163987682,3.82556,2614.0,2613.4,0.55]
[1724163987922,3.82573,2613.9,2613.4,0.55]
[1724163988089,3.82556,2614.0,2613.4,4.37642]
[1724163988291,7.65075,2614.2,2613.5,3.82628]
[1724163988505,3.82535,2614.2,2613.6,3.82612]
[1724163989017,3.82535,2614.2,2613.5,3.82628]
[1724163989018,3.82534,2614.2,2613.5,3.82628]
[1724163989180,3.82562,2614.0,2613.4,1.635718]
[1724163989385,3.82507,2614.4,2613.7,3.82592]
[1724163989706,3.82557,2614.0,2613.5,2.2688]
[1724163990119,0.07636381,2614.1,2613.5,2.2688]
[1724163990322,3.82587,2613.8,2613.0,13.99673]
[1724163990512,2.4446,2614.2,2613.0,10.1698]
[1724163990698,3.82623,2613.6,2613.0,2.2688]
[1724163990938,2.4446,2614.2,2612.6,3.82756]
[1724163991253,7.65365,2613.2,2612.6,6.09632]
[1724163991398,3.82688,2613.1,2612.6,2.2688]
[1724163991600,3.90324381,2613.1,2612.6,2.2688]
[1724163991799,3.82719,2612.9,2612.2,6.3119]
[1724163992059,3.82719,2612.9,2612.2,6.31188]
[1724163992221,3.82665,2613.3,2612.5,3.82774]
[1724163992411,3.82701,2613.0,2612.2,2.4838]
[1724163992949,3.82661,2613.3,2612.2,2.4838]
[1724163993104,3.8273,2612.9,2612.2,2.4838]
[1724163993305,3.82732,2612.8,2612.2,2.4838]
[1724163993668,3.82749,2612.7,2612.1,3.82823]
[1724163993949,4.209431,2613.2,2611.9,3.955679]
[1724163993950,3.82805,2612.3,2611.9,0.127109]
[1724163994246,3.82834,2612.1,2611.9,0.127109]
[1724163994548,4.28735881,2612.2,2611.9,0.127109]
[1724163994753,3.90455381,2612.2,2611.9,0.127109]
[1724163994900,3.82848,2612.0,2611.9,0.127109]
[1724163995244,3.90484381,2612.0,2611.9,0.127109]
[1724163995403,4.21896438,2612.0,2611.9,0.127109]
[1724163995605,8.04744438,2612.0,2611.9,0.127109]
[1724163995798,10.38044438,2612.0,2611.9,0.127109]
[1724163996026,14.20892438,2612.0,2611.9,0.127109]
[1724163996443,3.82974,2611.2,2610.8,2.4607]
[1724163996848,3.82974,2611.2,2610.4,3.8307]
[1724163996849,3.82939,2611.4,2610.6,3.83051]
[1724163997003,3.82939,2611.4,2610.6,7.66092]
[1724163997200,7.65889,2611.4,2610.6,3.83041]
[1724163997455,3.82958,2611.3,2610.6,3.83041]
[1724163998160,4.212329,2611.4,2610.5,3.83059]
[1724163998445,3.82969,2611.2,2610.5,3.83059]
[1724163998604,4.212329,2611.4,2610.6,3.83051]
[1724163998804,3.82955,2611.3,2610.6,3.83042]
[1724163999271,3.82962,2611.3,2610.6,3.83042]
[1724163999411,4.595504,2611.3,2610.6,3.83042]
[1724163999923,3.82922,2611.5,2610.7,3.83037]
[1724164000305,3.82935,2611.5,2610.6,3.83041]
[1724164000510,0.07636381,2611.4,2610.4,7.66149]
[1724164000728,3.8294,2611.4,2610.6,3.83041]
[1724164000925,4.595251,2611.4,2610.6,3.83041]
[1724164001124,3.82932,2611.5,2610.7,3.83032]
[1724164001435,3.82948,2611.4,2610.7,3.83032]
[1724164001920,3.82948,2611.4,2610.5,7.66115]
[1724164001921,3.8296,2611.3,2610.5,7.66115]
[1724164002125,7.65894,2611.4,2610.5,3.83056]
[1724164002370,3.82946,2611.4,2610.6,3.8304]
[1724164002671,4.595319,2611.4,2610.6,3.8304]
[1724164002887,8.424779,2611.4,2610.7,0.55]
[1724164003171,8.424769,2611.4,2610.7,0.55]
[1724164003374,4.595309,2611.4,2610.6,3.8304]
[1724164003577,4.595309,2611.4,2610.7,3.83038]
[1724164003877,4.595309,2611.4,2610.4,3.83074]
[1724164003878,4.2890609,2611.3,2610.6,3.83051]
[1724164004031,3.82952,2611.3,2610.7,3.83036]
[1724164004233,3.82969,2611.2,2610.5,3.83056]
[1724164004434,3.82993,2611.1,2610.4,3.83079]
[1724164004746,3.82966,2611.2,2610.5,3.83067]
[1724164004949,7.65942,2611.2,2610.5,4.822166]
[1724164005279,3.82966,2611.2,2610.5,3.8306]
[1724164005495,3.82966,2611.2,2610.6,3.83044]
[1724164006035,3.82952,2611.3,2610.7,3.83038]
[1724164006236,3.82944,2611.4,2610.7,7.6606]
[1724164006566,3.82914,2611.6,2610.9,6.19121]
[1724164006735,4.212054,2611.6,2610.8,3.8302]
[1724164006936,3.82944,2611.4,2610.7,3.83029]
[1724164007147,3.82944,2611.4,2610.7,7.66058]
[1724164007479,4.212064,2611.6,2610.9,3.83]
[1724164007895,6.56212438,2612.0,2610.6,2.3612]
[1724164007896,6.56215438,2612.0,2611.3,3.82949]
[1724164008033,0.60040771,2612.2,2611.3,3.82949]
[1724164008233,0.60040771,2612.2,2611.3,3.82942]
[1724164008489,3.82866,2611.9,2611.3,3.82942]
[1724164008636,3.8285,2612.0,2611.3,3.82941]
[1724164008837,3.82864,2611.9,2611.3,4.437751]
[1724164009058,3.8285,2612.0,2611.3,4.437731]
[1724164009258,3.82884,2611.8,2611.3,0.608341]
[1724164009577,3.82871,2611.9,2611.3,3.82948]
[1724164009900,2.4694,2612.4,2611.3,3.82936]
[1724164010215,3.82795,2612.4,2611.7,3.82892]
[1724164010358,3.03456584,2612.8,2611.5,3.82911]
[1724164010359,3.82828,2612.2,2611.5,3.82911]
[1724164010557,0.30345658,2612.7,2611.7,3.82883]
[1724164010761,0.30345658,2612.7,2611.5,3.82913]
[1724164010762,3.82768,2612.6,2612.0,3.82837]
[1724164011156,3.82739,2612.8,2612.0,3.82837]
[1724164011797,4.32076533,2613.4,2612.5,3.82763]
[1724164011798,3.82681,2613.2,2612.5,3.82763]
[1724164012037,3.82673,2613.2,2612.5,6.13243]
[1724164012171,3.82729,2612.9,2612.1,3.82822]
[1724164012374,3.82687,2613.1,2612.2,0.55]
[1724164012704,3.82687,2613.1,2612.2,1.5183]
[1724164013064,3.82687,2613.1,2612.3,3.82803]
[1724164013262,3.82663,2613.3,2612.3,3.82803]
[1724164013628,3.82663,2613.3,2612.2,1.5183]
[1724164013629,3.82652,2613.4,2612.7,3.8274]
[1724164013811,0.765285,2613.3,2612.7,3.82736]
[1724164013971,3.82633,2613.5,2612.7,3.82736]
[1724164014172,3.82606,2613.7,2612.7,7.65468]
[1724164014415,3.82606,2613.7,2612.8,0.0765426]
[1724164014701,3.82616,2613.6,2612.9,3.82703]
[1724164014871,2.3581,2613.9,2613.1,3.82677]
[1724164014872,3.82596,2613.8,2613.1,3.82677]
[1724164015073,3.82576,2613.9,2613.2,3.82672]
[1724164015074,0.765172,2613.7,2613.2,3.82672]
[1724164015370,3.82546,2614.1,2613.3,3.82655]
[1724164015371,7.65097,2614.1,2613.3,3.82655]
[1724164015570,3.82546,2614.1,2613.3,3.82655]
[1724164015774,3.82546,2614.1,2613.2,6.28942]
[1724164015996,3.82602,2613.7,2613.2,2.4628]
[1724164016375,3.82576,2613.9,2613.2,6.28941]
[1724164016630,0.765125,2613.9,2613.2,6.28941]
[1724164016835,3.82514,2614.3,2613.4,3.8264]
[1724164017005,2.4508,2614.6,2613.4,3.8264]
[1724164017006,6.27553,2614.6,2613.4,3.8264]
[1724164017208,3.82519,2614.3,2613.4,7.65273]
[1724164017433,6.27553,2614.6,2613.4,7.65273]
[1724164017434,6.27553,2614.6,2613.4,3.82633]
[1724164017616,3.82596,2613.8,2613.2,2.4628]
[1724164017825,0.45895981,2613.7,2612.8,6.1473]
[1724164018019,0.45895981,2613.7,2612.9,4.37706]
[1724164018020,3.82624,2613.6,2612.9,4.37706]
[1724164018234,0.382596,2613.7,2612.9,0.55]
[1724164018415,3.82624,2613.6,2612.9,0.55]
[1724164018634,4.208606,2613.7,2613.0,3.82691]
[1724164018844,3.82563,2614.0,2613.1,0.55]
[1724164019047,3.82563,2614.0,2613.3,3.82644]
[1724164019245,3.82594,2613.8,2613.1,3.82677]
[1724164019415,3.82607,2613.7,2613.1,3.82677]
[1724164019618,3.82594,2613.8,2613.2,3.8267]
[1724164019840,3.82559,2614.0,2613.3,4.37657]
[1724164020051,4.590679,2614.0,2613.4,2.3703]
[1724164020228,0.765089,2614.0,2613.2,3.82663]
[1724164020465,3.8254,2614.1,2613.4,3.82632]
[1724164020624,6.20715,2614.5,2613.3,0.55]
[1724164020625,3.826,2613.7,2613.3,0.55]
[1724164020831,3.826,2613.7,2613.1,6.19713]
[1724164020832,3.82608,2613.7,2613.1,2.3703]
[1724164021145,3.82629,2613.5,2613.1,2.3703]
[1724164021352,3.82651,2613.4,2613.1,2.3703]
[1724164021577,3.82573,2613.9,2612.8,3.82717]
[1724164021578,3.82607,2613.7,2612.8,2.4617]
[1724164021753,4.434147,2613.7,2613.0,3.82688]
[1724164021958,4.434147,2613.7,2613.0,7.65382]
[1724164022269,4.434147,2613.7,2612.9,0.55]
[1724164022270,3.82667,2613.3,2612.9,0.55]
[1724164022439,3.82689,2613.1,2612.8,2.4617]
[1724164022651,3.82718,2612.9,2612.4,2.4848]
[1724164024122,0.39043638,2612.3,2611.6,3.82897]
[1724164024253,3.828,2612.4,2611.6,3.82897]
[1724164024458,7.65599,2612.4,2611.8,3.82876]
[1724164024697,3.82799,2612.4,2611.6,7.65789]
[1724164024879,3.82805,2612.3,2611.6,3.82892]
[1724164025034,3.82805,2612.3,2611.4,6.16946]
[1724164025035,3.82844,2612.1,2611.4,6.16943]
[1724164025368,6.24458,2612.7,2611.4,2.3402]
[1724164025369,3.8287,2611.9,2611.4,2.3402]
[1724164025579,0.07636381,2611.8,2611.0,3.82987]
[1724164025728,3.82902,2611.7,2611.1,3.82976]
[1724164025922,3.82826,2612.2,2610.8,10.3709]
[1724164025923,3.82841,2612.1,2611.2,3.82963]
[1724164026158,3.82841,2612.1,2611.2,7.65915]
[1724164026159,4.211431,2612.0,2611.2,7.65915]
[1724164026473,4.211431,2612.0,2610.8,14.201]
[1724164026474,0.382841,2612.0,2610.8,14.201]
[1724164026684,0.382841,2612.0,2611.2,3.82951]
[1724164026827,3.8284,2612.1,2611.5,3.82921]
[1724164027181,3.82783,2612.5,2611.6,0.07657959]
[1724164027327,2.3514,2612.8,2611.4,2.4629]
[1724164027328,2.3514,2612.8,2611.8,3.82876]
[1724164027531,3.82753,2612.7,2611.8,3.82876]
[1724164027791,4.48445844,2612.7,2612.0,3.82846]
[1724164028009,4.21759438,2612.9,2612.1,3.0129]
[1724164028160,3.82724,2612.9,2612.1,3.0129]
[1724164028477,3.82703,2613.0,2612.3,3.828]
[1724164028676,0.765392,2612.9,2612.3,3.828]
[1724164029121,3.82689,2613.1,2612.3,3.828]
[1724164029122,3.82689,2613.1,2612.4,3.8278]
[1724164029355,3.82666,2613.3,2612.6,3.8275]
[1724164029608,3.82666,2613.3,2612.6,7.65501]
[1724164029905,3.82701,2613.0,2612.5,2.2573]
[1724164030114,3.82717,2612.9,2612.3,3.82801]
[1724164030264,3.82701,2613.0,2612.2,2.3907]
[1724164030480,3.8263,2613.5,2610.4,11.73176]
[1724164030481,6.597791,2612.9,2611.8,2.3907]
[1724164030672,3.82805,2612.3,2611.8,2.3907]
[1724164030864,3.82734,2612.8,2611.8,2.3907]
[1724164030865,3.82769,2612.6,2611.8,2.3907]
[1724164031075,3.82797,2612.4,2611.8,2.3907]
[1724164031364,3.82769,2612.6,2611.9,3.82861]
[1724164031568,3.82818,2612.3,2611.6,3.82898]
[1724164031825,3.82802,2612.4,2611.7,3.8289]
[1724164032657,3.82808,2612.3,2611.7,3.8289]
[1724164033225,3.82808,2612.3,2611.7,7.65772]
[1724164033422,3.82808,2612.3,2611.7,3.82882]
[1724164033620,3.82808,2612.3,2611.7,7.65765]
[1724164033854,3.82808,2612.3,2611.6,3.82904]
[1724164034068,3.82808,2612.3,2611.5,3.82912]
[1724164034069,3.82823,2612.2,2611.5,7.65825]
[1724164034273,8.0773249,2612.3,2611.6,4.37901]
[1724164034572,8.0773249,2612.3,2611.3,9.24581]
[1724164034573,3.82862,2612.0,2611.3,9.24581]
[1724164034774,0.45922581,2611.9,2611.1,3.82966]
[1724164034971,0.382862,2611.9,2611.1,3.82966]
[1724164035187,3.82887,2611.8,2611.1,3.82966]
[1724164035357,3.82894,2611.7,2611.1,3.82966]
[1724164035567,3.82894,2611.7,2610.9,6.22932]
[1724164035568,2.34396381,2611.6,2610.9,3.83002]
[1724164035727,3.82923,2611.5,2610.9,3.83002]
[1724164035933,3.82923,2611.5,2610.7,3.83035]
[1724164035934,7.73493381,2611.5,2610.8,3.83015]
[1724164036132,7.73489381,2611.5,2610.8,3.83015]
[1724164036374,7.73489381,2611.5,2610.5,2.3993]
[1724164036375,0.07636381,2611.5,2610.9,3.83007]
[1724164036578,2.854262,2611.9,2610.9,3.83001]
[1724164036732,0.2854262,2611.8,2610.9,3.83001]
[1724164036933,2.854262,2611.9,2611.3,3.82943]
[1724164036934,0.382862,2611.9,2611.3,3.82943]
[1724164037140,3.82866,2611.9,2611.2,3.82964]
[1724164037363,3.82852,2612.0,2611.2,3.82964]
[1724164037577,3.82867,2611.9,2611.1,2.4268]
[1724164037786,3.82867,2611.9,2611.2,3.82962]
[1724164037934,7.65739,2611.9,2611.2,3.82962]
[1724164038135,3.82867,2611.9,2611.2,3.82957]
[1724164038329,3.82841,2612.1,2611.3,0.07658557]
[1724164038536,3.82841,2612.1,2611.5,3.82918]
[1724164038761,3.82841,2612.1,2611.4,0.62657822]
[1724164038970,3.82841,2612.1,2611.4,4.45582822]
[1724164039336,6.6751049,2612.3,2611.1,2.4268]
[1724164039337,2.8469849,2612.3,2611.1,2.4268]
[1724164039539,3.82878,2611.8,2611.2,3.82961]
[1724164039881,3.82878,2611.8,2611.1,6.25651]
[1724164040034,7.65765,2611.8,2611.2,3.82957]
[1724164040241,3.82878,2611.8,2611.1,6.25651]
[1724164040439,3.829,2611.7,2611.1,6.25651]
[1724164040783,3.82863,2611.9,2611.2,3.82957]
[1724164040948,3.82878,2611.8,2611.2,3.82957]
[1724164041153,3.82856,2612.0,2611.3,7.65892]
[1724164041494,0.28469849,2612.2,2611.6,3.82896]
[1724164041777,3.82836,2612.1,2611.1,2.4268]
[1724164041947,3.82836,2612.1,2611.2,0.55]
[1724164041948,3.82864,2611.9,2611.2,0.55]
[1724164042276,3.82836,2612.1,2611.5,3.8292]
[1724164042482,0.28469849,2612.2,2611.5,3.8292]
[1724164042483,0.28469849,2612.2,2611.6,3.829]
[1724164042805,3.82835,2612.1,2611.5,7.65834]
[1724164042996,6.25403,2612.3,2611.4,2.3157]
[1724164042997,3.82811,2612.3,2611.4,2.3157]
[1724164043136,3.82811,2612.3,2611.7,3.82885]
[1724164043137,3.82814,2612.3,2611.7,3.82885]
[1724164043339,6.29035,2613.0,2611.9,3.82862]
[1724164043769,3.82768,2612.6,2611.9,3.8285]
[1724164043970,3.82777,2612.5,2611.9,3.8285]
[1724164044341,3.82809,2612.3,2611.7,4.594631]
[1724164044538,3.8283,2612.2,2611.6,3.82899]
[1724164044768,3.82805,2612.3,2611.6,3.82899]
[1724164045088,3.82757,2612.7,2611.6,3.82899]
[1724164045089,3.82775,2612.5,2611.6,3.82896]
[1724164045380,3.82775,2612.5,2611.4,2.3157]
[1724164045381,3.82837,2612.1,2611.5,3.82921]
[1724164045794,3.82819,2612.2,2611.6,3.82906]
[1724164045963,3.82819,2612.2,2611.6,3.829]
[1724164046283,0.618935,2612.5,2611.0,2.3346]
[1724164046284,3.829,2611.7,2611.0,2.3346]
[1724164046494,3.829,2611.7,2611.0,6.16445]
[1724164046840,7.65804,2611.7,2611.1,3.82972]
[1724164047045,3.82867,2611.9,2611.2,3.82957]
[1724164047379,2.2917,2612.1,2611.0,6.16441]
[1724164047380,3.82892,2611.7,2611.0,6.16441]
[1724164047691,3.82892,2611.7,2611.1,3.82978]
[1724164047984,3.82914,2611.6,2611.0,6.16441]
[1724164048286,3.82884,2611.8,2611.2,3.82961]
[1724164048505,3.82884,2611.8,2611.2,7.65919]
[1724164048786,7.65745,2611.9,2611.3,3.82942]
[1724164048994,3.82872,2611.9,2611.3,7.65884]
[1724164049285,3.82872,2611.9,2611.0,2.3346]
[1724164049286,3.82843,2612.1,2611.4,3.82923]
[1724164049486,3.82814,2612.3,2611.6,3.82896]
[1724164049487,3.82828,2612.2,2611.6,3.82896]
[1724164049656,6.19739,2612.4,2611.4,0.382923]
[1724164049984,3.82789,2612.4,2611.8,3.82869]
[1724164050144,4.593532,2612.4,2611.7,2.4242]
[1724164050344,4.593532,2612.4,2611.8,3.82877]
[1724164050345,3.82805,2612.3,2611.8,3.82877]
[1724164050549,3.82805,2612.3,2611.6,6.25313]
[1724164050550,3.82826,2612.2,2611.6,6.25313]
[1724164050868,3.82805,2612.3,2611.6,2.4242]
[1724164050869,3.82834,2612.1,2611.6,2.4242]
[1724164051075,3.82848,2612.0,2611.6,2.4242]
[1724164051242,3.8287,2611.9,2611.3,6.25367]
[1724164051441,3.82889,2611.8,2611.3,2.4242]
[1724164051641,3.8287,2611.9,2611.3,2.4242]
[1724164051864,3.82881,2611.8,2611.3,6.2537]
[1724164052087,0.3104449,2612.0,2611.5,3.8292]
[1724164052393,6.16659,2612.5,2611.9,3.82855]
[1724164052542,2.3388,2612.5,2611.3,2.4242]
[1724164052746,7.65622,2612.3,2611.7,3.8289]
[1724164052969,3.82829,2612.2,2611.5,7.65822]
[1724164053171,3.82829,2612.2,2611.6,3.82906]
[1724164053555,3.82834,2612.1,2611.5,3.82921]
[1724164053759,3.82834,2612.1,2611.3,2.4242]
[1724164053760,3.82807,2612.3,2611.3,2.4242]
[1724164054075,2.3388,2612.5,2611.3,2.4242]
[1724164054076,3.82868,2611.9,2611.3,3.82943]
[1724164054604,3.82878,2611.8,2611.2,3.82956]
[1724164054787,7.6572,2612.0,2611.4,3.82935]
[1724164054940,2.3754,2612.2,2611.4,3.82928]
[1724164054941,6.20373,2612.2,2611.4,3.82928]
[1724164055293,6.20373,2612.2,2611.6,3.829]
[1724164055294,6.20359,2612.2,2611.6,3.829]
[1724164055756,3.82819,2612.2,2611.5,3.82921]
[1724164055956,3.82819,2612.2,2611.6,3.82899]
[1724164056272,3.82835,2612.1,2611.5,3.82913]
[1724164056587,3.829,2611.7,2611.1,3.82966]
[1724164056794,3.829,2611.7,2611.2,3.82964]
[1724164057088,3.82907,2611.6,2611.0,6.10907]
[1724164057454,3.82907,2611.6,2611.0,3.82987]
[1724164057878,3.82924,2611.5,2610.7,6.2967]
[1724164058052,3.82924,2611.5,2610.7,6.29664]
[1724164058053,3.82943,2611.4,2610.7,6.29664]
[1724164058357,3.82943,2611.4,2610.9,3.83006]
[1724164058695,0.07636381,2611.5,2610.6,3.83039]
[1724164058858,3.82979,2611.2,2610.6,3.83039]
[1724164059212,3.82952,2611.3,2610.6,3.83052]
[1724164059361,3.82952,2611.3,2610.7,3.83029]
[1724164059565,4.15635708,2611.5,2610.7,7.66058]
[1724164059566,3.82945,2611.4,2610.7,7.66058]
[1724164059859,3.82945,2611.4,2610.4,23.37079]
[1724164059860,0.07636381,2611.3,2610.5,3.83056]
[1724164060060,0.07636381,2611.3,2610.4,19.54]
[1724164060061,3.82988,2611.1,2610.4,19.54]
[1724164060271,3.8293,2611.5,2610.4,19.54]
[1724164060476,7.65864,2611.5,2610.9,3.83001]
[1724164060807,3.82936,2611.4,2610.9,3.83001]
[1724164061091,3.82936,2611.4,2610.7,3.83028]
[1724164061257,3.82989,2611.1,2610.4,27.20156]
[1724164061460,1.08504981,2611.4,2610.2,6.12593]
[1724164061461,3.90631381,2611.0,2610.2,6.12593]
[1724164061659,3.83024,2610.8,2610.2,6.12593]
[1724164061898,0.39063138,2610.9,2610.2,6.12593]
[1724164061899,0.39063138,2610.9,2610.3,3.83089]
[1724164062422,7.65997,2611.0,2610.3,3.83089]
[1724164062629,3.82995,2611.0,2610.3,3.83089]
[1724164062826,3.82995,2611.0,2610.4,3.83073]
[1724164063330,7.65999,2611.0,2610.4,3.83073]
[1724164063630,2.4675,2611.1,2610.2,3.83104]
[1724164063631,3.8302,2610.9,2610.2,3.83104]
[1724164063831,3.83041,2610.7,2610.0,6.30259]
[1724164064013,3.83058,2610.6,2610.0,3.84129]
[1724164064532,7.66089,2610.7,2610.0,3.84129]
[1724164064742,3.83059,2610.6,2610.0,7.67261]
[1724164064944,3.83059,2610.6,2610.0,7.67262]
[1724164065237,3.83018,2610.9,2610.2,3.83104]
[1724164065438,3.83018,2610.9,2610.3,3.83095]
[1724164065675,3.83018,2610.9,2610.2,3.83104]
[1724164065676,8.697795,2610.9,2610.2,3.83104]
[1724164065829,4.867605,2610.9,2610.2,3.83104]
[1724164066031,4.867605,2610.9,2610.2,3.83101]
[1724164066367,3.83003,2611.0,2610.4,3.83081]
[1724164066693,3.82988,2611.1,2610.5,4.38068]
[1724164066839,3.82988,2611.1,2610.6,3.83053]
[1724164066840,3.82981,2611.1,2610.6,3.83053]
[1724164067042,3.82957,2611.3,2610.5,4.38063]
[1724164067258,1.008686,2611.4,2610.5,0.55]
[1724164067259,3.82989,2611.1,2610.5,0.55]
[1724164067460,0.382989,2611.1,2610.5,4.38068]
[1724164067664,4.212879,2611.1,2610.5,0.55]
[1724164067960,4.212879,2611.1,2610.5,4.38058]
[1724164068137,4.212879,2611.1,2610.5,0.55]
[1724164068345,4.212879,2611.1,2610.5,4.38065]
[1724164068673,3.82952,2611.3,2610.5,4.38055]
[1724164068974,3.82968,2611.2,2610.6,3.83041]
[1724164069300,3.82968,2611.2,2610.5,4.38055]
[1724164069677,0.382952,2611.3,2610.3,6.17889]
[1724164069678,3.83028,2610.8,2610.3,2.348]
[1724164069983,3.83028,2610.8,2610.1,3.83114]
[1724164070202,3.83028,2610.8,2610.0,2.2808]
[1724164070203,3.83061,2610.6,2610.0,6.11221]
[1724164070479,3.83029,2610.8,2610.1,3.83125]
[1724164070480,0.383028,2610.7,2610.1,3.83125]
[1724164070626,4.00457279,2611.3,2610.3,3.83085]
[1724164070974,4.00457279,2611.3,2610.0,2.2808]
[1724164070975,3.82993,2611.1,2610.5,3.83064]
[1724164071326,6.28169,2611.3,2610.6,0.55]
[1724164071678,3.82982,2611.1,2610.6,0.55]
[1724164071874,7.65974,2611.1,2610.6,0.55]
[1724164072179,3.82982,2611.1,2610.6,0.55]
[1724164072348,6.2817,2611.3,2610.7,3.83038]
[1724164072534,6.2817,2611.3,2610.7,4.651397]
[1724164072535,3.8296,2611.3,2610.7,4.651397]
[1724164072729,3.8296,2611.3,2610.6,3.0134]
[1724164072949,3.8296,2611.3,2610.6,6.84393]
[1724164073161,3.82968,2611.2,2610.6,3.0134]
[1724164073468,3.82982,2611.1,2610.6,3.0134]
[1724164073790,3.8296,2611.3,2610.6,3.0134]
[1724164073941,3.8296,2611.3,2610.7,3.83038]
[1724164074146,3.82926,2611.5,2610.7,3.83029]
[1724164074147,3.82942,2611.4,2610.7,3.83029]
[1724164074394,3.82952,2611.3,2610.8,0.55]
[1724164074543,3.8293,2611.5,2610.8,0.55]
[1724164074748,3.82936,2611.4,2610.9,0.438032]
[1724164074974,3.82953,2611.3,2610.8,0.55]
[1724164075292,7.65912,2611.3,2610.8,0.55]
[1724164075496,3.82953,2611.3,2610.8,0.55]
[1724164075789,3.82953,2611.3,2610.7,0.55]
[1724164076161,3.8293,2611.5,2610.9,3.83004]
[1724164076563,7.26862079,2611.7,2611.0,3.82986]
[1724164076564,3.8292,2611.6,2611.0,3.82986]
[1724164076825,3.829,2611.7,2611.1,0.55]
[1724164076952,5.38810857,2611.9,2611.2,6.13046]